bitfinex/quotes_BTCUSD_20241208
["timestamp","ask_amount","ask_price","bid_price","bid_amount"]
[1733690190273,0.0017294,99960.0,99951.0,0.00800026]
[1733690191918,0.0017294,99960.0,99956.0,0.02001381]
[1733690193224,0.0017294,99960.0,99956.0,0.02401381]
[1733690193633,0.0017294,99960.0,99956.0,0.02701381]
[1733690199289,0.0017294,99960.0,99956.0,0.11690082]
[1733690199427,0.0017294,99960.0,99956.0,0.02701381]
[1733690200052,0.0017294,99960.0,99956.0,0.11690082]
[1733690200842,0.0017294,99960.0,99956.0,0.02701381]
[1733690201915,0.0017294,99960.0,99956.0,0.11690082]
[1733690208380,0.0017294,99960.0,99956.0,0.11691061]
[1733690209481,0.0017294,99960.0,99956.0,0.11681061]
[1733690211308,0.0017294,99960.0,99957.0,0.0898968]
[1733690213308,0.0017294,99960.0,99957.0,0.08990801]
[1733690213922,0.0017294,99960.0,99957.0,0.09390801]
[1733690214385,0.0017294,99960.0,99957.0,0.09690801]
[1733690216325,0.0017294,99960.0,99958.0,0.08990801]
[1733690217395,0.0017294,99960.0,99958.0,0.09390801]
[1733690217596,0.0017294,99960.0,99958.0,0.09690801]
[1733690218282,0.0017294,99960.0,99958.0,0.09693354]
[1733690219327,0.0017294,99960.0,99959.0,0.08993354]
[1733690220443,0.0017294,99960.0,99959.0,0.09393354]
[1733690220642,0.0017294,99960.0,99959.0,0.09693354]
[1733690221260,0.0017294,99960.0,99959.0,0.007]
[1733690225317,0.0017294,99960.0,99959.0,0.14193699]
[1733690227275,0.0017294,99960.0,99959.0,0.47416315]
[1733690230722,0.0017294,99960.0,99959.0,0.14193699]
[1733690231126,0.0017294,99960.0,99959.0,0.47419767]
[1733690231587,0.0017294,99960.0,99959.0,0.33926068]
[1733690232868,0.0017294,99960.0,99959.0,0.14201509]
[1733690233567,0.0017294,99960.0,99959.0,0.47427422]
[1733690233754,0.0017294,99960.0,99959.0,0.007]
[1733690234509,0.0016304,99960.0,99959.0,0.14201395]
[1733690235150,0.0016304,99960.0,99959.0,0.47427842]
[1733690236825,0.0016304,99960.0,99959.0,0.14201395]
[1733690237027,0.0016304,99960.0,99959.0,0.007]
[1733690237222,0.0016304,99960.0,99959.0,0.14201395]
[1733690238633,0.0016304,99960.0,99959.0,0.007]
[1733690239034,0.0016304,99960.0,99959.0,0.14201395]
[1733690239671,0.0016304,99960.0,99959.0,0.007]
[1733690240100,0.0016304,99960.0,99959.0,0.14201395]
[1733690240423,0.0016304,99960.0,99959.0,0.007]
[1733690240619,0.0016304,99960.0,99959.0,0.14201395]
[1733690240821,0.0016304,99960.0,99959.0,0.007]
[1733690241026,0.0016304,99960.0,99959.0,0.14202764]
[1733690241635,0.0016304,99960.0,99959.0,0.007]
[1733690241989,0.0016304,99960.0,99959.0,0.14202764]
[1733690242334,0.0016304,99960.0,99959.0,0.007]
[1733690242716,0.0016304,99960.0,99959.0,0.14202764]
[1733690243282,0.0016304,99960.0,99959.0,0.007]
[1733690243503,0.0016304,99960.0,99959.0,0.14202764]
[1733690244287,0.0016304,99960.0,99959.0,0.007]
[1733690244507,0.0016304,99960.0,99959.0,0.14202764]
[1733690244878,0.0016304,99960.0,99959.0,0.007]
[1733690245512,0.0016304,99960.0,99959.0,0.14202764]
[1733690245712,0.0016304,99960.0,99959.0,0.007]
[1733690250890,0.0016304,99960.0,99959.0,0.09703075]
[1733690251318,0.0016304,99960.0,99959.0,0.007]
[1733690252757,0.0016304,99960.0,99959.0,0.09703075]
[1733690253605,0.0016304,99960.0,99959.0,0.007]
[1733690255464,0.0016304,99960.0,99959.0,0.09701853]
[1733690255806,0.0016304,99960.0,99959.0,0.09701704]
[1733690256010,0.0016304,99960.0,99959.0,0.007]
[1733690262526,0.0016304,99960.0,99959.0,0.09701712]
[1733690262719,0.0016304,99960.0,99959.0,0.007]
[1733690263476,0.25165991,99960.0,99959.0,0.007]
[1733690263871,0.55427071,99960.0,99959.0,0.007]
[1733690264103,0.73433425,99960.0,99959.0,0.007]
[1733690264503,0.73433425,99960.0,99959.0,0.004]
[1733690264748,0.50962792,99960.0,99959.0,0.001]
[1733690265611,0.37465991,99960.0,99959.0,0.001]
[1733690265821,0.37865991,99960.0,99959.0,0.001]
[1733690266441,0.37465991,99960.0,99959.0,0.001]
[1733690266625,0.15,99959.0,99950.0,0.00230419]
[1733690266829,0.17712951,99958.0,99950.0,0.00230419]
[1733690267028,0.15,99957.0,99950.0,0.00230419]
[1733690267237,0.15,99955.0,99950.0,0.00230419]
[1733690267446,0.15,99953.0,99950.0,0.00230419]
[1733690267663,0.25002951,99953.0,99950.0,0.00230419]
[1733690268455,0.180086,99952.0,99950.0,0.00230419]
[1733690268605,0.180086,99952.0,99950.0,0.00330419]
[1733690269006,0.17712951,99951.0,99950.0,0.00330419]
[1733690269671,0.17712951,99951.0,99950.0,0.00230419]
[1733690269672,0.32712951,99951.0,99950.0,0.00230419]
[1733690270129,0.32712951,99951.0,99950.0,0.00330419]
[1733690270130,0.46193902,99951.0,99950.0,0.00330419]
[1733690270381,0.6259268,99951.0,99950.0,0.00330419]
[1733690270551,0.32712951,99951.0,99950.0,0.00230419]
[1733690270888,0.32812951,99951.0,99950.0,0.00230419]
[1733690271349,0.32712951,99951.0,99950.0,0.00230419]
[1733690271551,0.37602951,99951.0,99950.0,0.00230419]
[1733690272446,0.38502951,99951.0,99950.0,0.00330419]
[1733690272792,0.38202951,99951.0,99950.0,0.00330419]
[1733690273212,0.38602951,99951.0,99950.0,0.00330419]
[1733690274103,0.39592351,99951.0,99950.0,0.00330419]
[1733690292684,0.20002351,99951.0,99950.0,0.00330419]
[1733690292879,0.19012951,99951.0,99950.0,0.00330419]
[1733690293079,0.11302951,99951.0,99950.0,0.00330419]
[1733690293818,0.013,99951.0,99950.0,0.00330419]
[1733690294844,0.180086,99952.0,99950.0,0.00230419]
[1733690294962,0.008,99951.0,99950.0,0.00330419]
[1733690295358,0.152,99951.0,99950.0,0.00230419]
[1733690295531,0.15,99951.0,99950.0,0.00230419]
[1733690295738,0.15,99951.0,99950.0,0.00330419]
[1733690295739,0.152,99951.0,99950.0,0.00330419]
[1733690298309,0.002,99951.0,99950.0,0.00330419]
[1733690313754,0.002,99951.0,99950.0,0.00430462]
[1733690314167,0.002,99951.0,99950.0,0.00330419]
[1733690318263,0.002,99951.0,99950.0,0.00430456]
[1733690320143,0.002,99951.0,99950.0,0.00330419]
[1733690324454,0.1509971,99970.0,99958.0,0.180074]
[1733690324658,0.0009971,99970.0,99958.0,0.180074]
[1733690325683,0.15,99969.0,99958.0,0.180074]
[1733690326875,0.0026304,99960.0,99958.0,0.180074]
[1733690327092,0.0026304,99960.0,99958.0,0.179951]
[1733690327093,0.0016304,99960.0,99958.0,0.179951]
[1733690327324,0.0016304,99960.0,99958.0,0.180951]
[1733690327765,0.0016304,99960.0,99958.0,0.179951]
[1733690327969,0.0016304,99960.0,99958.0,0.181951]
[1733690328223,0.0016304,99960.0,99958.0,0.182951]
[1733690328442,0.0016304,99960.0,99958.0,0.181951]
[1733690329268,0.0016304,99960.0,99958.0,0.179951]
[1733690329689,0.0016304,99960.0,99958.0,0.19174167]
[1733690329859,0.0016304,99960.0,99958.0,0.19474167]
[1733690340442,0.0016304,99960.0,99959.0,0.10102981]
[1733690340648,0.0016304,99960.0,99959.0,0.68995504]
[1733690340865,0.0016304,99960.0,99959.0,0.7614607]
[1733690341513,0.0016304,99960.0,99959.0,0.9857767]
[1733690341729,0.0016304,99960.0,99959.0,0.7614607]
[1733690341964,0.0016304,99960.0,99959.0,0.7634607]
[1733690342414,0.0016304,99960.0,99959.0,0.7664607]
[1733690342638,0.0016304,99960.0,99959.0,0.7654607]
[1733690343056,0.0026304,99960.0,99959.0,0.95180519]
[1733690343493,0.0026304,99960.0,99959.0,0.7724607]
[1733690343936,0.0026304,99960.0,99959.0,0.95180917]
[1733690344090,0.0026304,99960.0,99959.0,0.7724607]
[1733690346340,0.0026304,99960.0,99959.0,0.90635157]
[1733690346696,0.0026304,99960.0,99959.0,0.77191749]
[1733690347200,0.0026304,99960.0,99959.0,0.57544486]
[1733690348083,0.0026304,99960.0,99959.0,0.44102951]
[1733690349523,0.0026304,99960.0,99959.0,0.77172444]
[1733690349741,0.001731,99980.0,99979.0,0.180037]
[1733690349982,0.001731,99980.0,99979.0,0.28106648]
[1733690350105,0.001731,99980.0,99979.0,0.28006651]
[1733690350306,0.001731,99980.0,99979.0,0.50836651]
[1733690350527,0.001731,99980.0,99979.0,0.56506651]
[1733690350731,0.001731,99980.0,99979.0,0.61376651]
[1733690351116,0.001731,99980.0,99979.0,0.70332659]
[1733690351428,0.001731,99980.0,99979.0,0.61376651]
[1733690352177,0.002731,99980.0,99979.0,0.62276651]
[1733690352648,0.003731,99980.0,99979.0,0.62976651]
[1733690353066,0.002731,99980.0,99979.0,0.64110323]
[1733690353306,0.002731,99980.0,99979.0,0.60010323]
[1733690353510,0.002731,99980.0,99979.0,0.36640323]
[1733690353742,0.002731,99980.0,99979.0,0.31640323]
[1733690353939,0.002731,99980.0,99979.0,0.35940323]
[1733690353940,0.001731,99980.0,99979.0,0.35940323]
[1733690354146,0.001731,99980.0,99979.0,0.36740323]
[1733690354353,0.002731,99980.0,99979.0,0.36740323]
[1733690356157,0.002731,99980.0,99979.0,0.42410323]
[1733690356356,0.002731,99980.0,99979.0,0.60240323]
[1733690357603,0.0009898,99992.0,99991.0,0.408316]
[1733690357812,0.0009898,99992.0,99991.0,0.50834551]
[1733690358183,0.0017306,100000.0,99999.0,0.358301]
[1733690358384,0.0017306,100000.0,99999.0,0.45833051]
[1733690358929,0.0017306,100000.0,99999.0,0.50838787]
[1733690359658,0.0017306,100000.0,99999.0,0.51438787]
[1733690360363,0.0017306,100000.0,99999.0,0.51138787]
[1733690360781,0.0017306,100000.0,99999.0,0.50838787]
[1733690360990,0.0017306,100000.0,99999.0,0.65838787]
[1733690360991,6e-07,100000.0,99999.0,0.65838787]
[1733690361209,0.0027289,100020.0,100010.0,0.464982]
[1733690361406,0.0017302,100020.0,100010.0,0.68019146]
[1733690362257,0.0017302,100020.0,100010.0,0.62349146]
[1733690363338,0.0017302,100020.0,100010.0,0.90419146]
[1733690363543,0.0017302,100020.0,100010.0,0.91219146]
[1733690365420,0.0017302,100020.0,100010.0,0.85549146]
[1733690369632,0.0017302,100020.0,100010.0,2.24259146]
[1733690370310,0.0017302,100020.0,100010.0,2.07071151]
[1733690370806,0.0017302,100020.0,100010.0,2.03109591]
[1733690371394,0.0017302,100020.0,100010.0,1.87579591]
[1733690371598,0.0772302,100020.0,100010.0,0.49809591]
[1733690371797,0.0772302,100020.0,100010.0,0.44809591]
[1733690371975,0.0772302,100020.0,100010.0,0.49809591]
[1733690372177,0.0772302,100020.0,100010.0,0.44809591]
[1733690372783,0.0772302,100020.0,100010.0,0.337982]
[1733690377588,0.3045942,100020.0,100010.0,0.337982]
[1733690379320,0.3045942,100020.0,100010.0,0.158]
[1733690379518,0.40462371,100020.0,100010.0,0.158]
[1733690380735,0.40462371,100020.0,100010.0,0.154]
[1733690380988,0.40562371,100020.0,100010.0,0.154]
[1733690381222,0.1256302,100020.0,100010.0,0.333982]
[1733690381811,0.1256302,100020.0,100010.0,0.329982]
[1733690382015,0.1256302,100020.0,100010.0,0.330982]
[1733690382698,0.1256302,100020.0,100010.0,0.329982]
[1733690384170,0.0782302,100020.0,100010.0,0.329982]
[1733690384962,0.0027302,100020.0,100010.0,0.54519146]
[1733690385140,0.0027302,100020.0,100010.0,0.48001151]
[1733690385350,0.0027302,100020.0,100010.0,0.49004533]
[1733690387530,0.0027302,100020.0,100010.0,0.50981718]
[1733690389976,0.0858302,100020.0,100010.0,0.40978767]
[1733690400719,0.0858302,100020.0,100010.0,0.35978767]
[1733690403647,0.0858302,100020.0,100010.0,0.34001582]
[1733690403648,0.1331302,100020.0,100010.0,0.34001582]
[1733690403845,0.1331302,100020.0,100010.0,0.329982]
[1733690404087,0.3130942,100020.0,100010.0,0.329982]
[1733690404318,0.3130942,100020.0,100010.0,0.15]
[1733690405281,0.3130942,100020.0,100000.0,0.56094413]
[1733690405486,0.0818,100010.0,100000.0,0.38095213]
[1733690406531,0.0818,100010.0,100000.0,0.3930898]
[1733690407996,0.0818,100010.0,100000.0,0.3950898]
[1733690417099,0.0818,100010.0,100000.0,0.4846887]
[1733690417496,0.0818,100010.0,100000.0,0.61908706]
[1733690419511,0.0818,100010.0,100000.0,1.25133435]
[1733690419713,0.1318142,100020.0,100010.0,0.179982]
[1733690419921,0.1318142,100020.0,100010.0,0.2695809]
[1733690420115,0.1308302,100020.0,100010.0,0.2695809]
[1733690420743,0.1308302,100020.0,100010.0,0.179982]
[1733690421661,0.1308302,100020.0,100010.0,0.26961749]
[1733690421871,0.1318302,100020.0,100010.0,0.179982]
[1733690425789,0.1318302,100020.0,100010.0,0.18996619]
[1733690426358,0.1318302,100020.0,100010.0,0.27960005]
[1733690426960,0.1318302,100020.0,100010.0,0.18996619]
[1733690427139,0.1318302,100020.0,100010.0,0.27960005]
[1733690435511,0.1318302,100020.0,100010.0,0.27962521]
[1733690442081,0.1308302,100020.0,100010.0,0.27962521]
[1733690442306,0.0835302,100020.0,100010.0,0.45628511]
[1733690442466,0.0017302,100020.0,100010.0,1.09423923]
[1733690442664,0.0017302,100020.0,100010.0,1.42621859]
[1733690442908,0.0017302,100020.0,100010.0,1.33855957]
[1733690443060,0.0778302,100020.0,100010.0,1.0784257]
[1733690443715,0.0778302,100020.0,100010.0,0.89910766]
[1733690443920,0.0778302,100020.0,100010.0,1.0764257]
[1733690444136,0.0778302,100020.0,100010.0,1.0744257]
[1733690444358,0.0778302,100020.0,100010.0,1.0774257]
[1733690445140,0.0778302,100020.0,100010.0,1.08133819]
[1733690445344,0.0778302,100020.0,100010.0,1.07833819]
[1733690445827,0.0778302,100020.0,100010.0,1.08333819]
[1733690446660,0.0778302,100020.0,100010.0,0.93330868]
[1733690446863,0.0778302,100020.0,100010.0,0.2886141]
[1733690447083,0.0778302,100020.0,100010.0,0.19896619]
[1733690447297,0.0778302,100020.0,100010.0,0.2886141]
[1733690447934,0.0778302,100020.0,100010.0,0.19896619]
[1733690450329,0.3033942,100020.0,100010.0,0.01898419]
[1733690450514,0.3033942,100020.0,100010.0,0.009]
[1733690450707,0.55342371,100020.0,100010.0,0.009]
[1733690450956,0.64331571,100020.0,100010.0,0.009]
[1733690451355,0.47732371,100020.0,100000.0,0.3608482]
[1733690451556,0.0761,100010.0,100000.0,0.3608482]
[1733690452182,0.1217,100010.0,100000.0,0.3608482]
[1733690452382,0.11804,100010.0,100000.0,0.0008642]
[1733690453410,0.298022,100010.0,100000.0,0.0008642]
[1733690453814,0.299022,100010.0,100000.0,0.0008642]
[1733690454164,0.299022,100010.0,100000.0,0.0018642]
[1733690459362,0.54905151,100010.0,100000.0,0.0018642]
[1733690460037,0.63894351,100010.0,100000.0,0.0018642]
[1733690460210,0.54905151,100010.0,100000.0,0.0018642]
[1733690460410,0.63894351,100010.0,100000.0,0.0018642]
[1733690460964,0.54905151,100010.0,100000.0,0.0018642]
[1733690461388,0.63894351,100010.0,100000.0,0.0018642]
[1733690461769,0.54905151,100010.0,100000.0,0.0018642]
[1733690461973,0.63894351,100010.0,100000.0,0.0018642]
[1733690462186,0.358932,100010.0,100000.0,0.0018642]
[1733690462400,0.26904,100010.0,100000.0,0.0018642]
[1733690464350,0.11904,100010.0,100000.0,0.0018642]
[1733690473546,0.06904,100010.0,100000.0,0.0018642]
[1733690475692,0.06904,100010.0,100000.0,0.01182809]
[1733690479315,0.070769,100010.0,100000.0,0.01182809]
[1733690485264,0.070769,100010.0,100000.0,0.0018642]
[1733690485534,0.35078051,100010.0,100000.0,0.0018642]
[1733690486843,0.50078051,100010.0,100000.0,0.0018642]
[1733690491089,0.59061289,100010.0,100000.0,0.0018642]
[1733690492871,0.50078051,100010.0,100000.0,0.0018642]
[1733690493798,0.070769,100010.0,100000.0,0.0018642]
[1733690497367,0.070769,100010.0,100000.0,0.01183695]
[1733690504229,0.002729,100010.0,100000.0,0.08746734]
[1733690504742,0.002729,100010.0,100000.0,0.18371657]
[1733690506608,0.002729,100010.0,100000.0,0.31838601]
[1733690506814,0.002729,100010.0,100000.0,0.64974668]
[1733690510233,0.002729,100010.0,100000.0,0.64974037]
[1733690510425,0.002729,100010.0,100000.0,0.82928065]
[1733690512166,0.002729,100010.0,100000.0,0.90491104]
[1733690512380,0.002729,100010.0,100000.0,0.79795833]
[1733690512540,0.002729,100010.0,100000.0,1.03956626]
[1733690513163,0.002729,100010.0,100000.0,1.13959577]
[1733690513371,0.002729,100010.0,100000.0,1.00494056]
[1733690515006,0.002729,100010.0,100000.0,1.00469193]
[1733690515655,0.002729,100010.0,100000.0,1.13928541]
[1733690519878,0.002729,100010.0,100000.0,1.13885151]
[1733690520596,0.002729,100010.0,100000.0,1.2144819]
[1733690520802,0.002729,100010.0,100000.0,1.13885151]
[1733690522062,0.002729,100010.0,100000.0,1.35814188]
[1733690522209,0.002729,100010.0,100000.0,1.17875519]
[1733690522390,0.002729,100010.0,100000.0,1.25471262]
[1733690522589,0.0017302,100020.0,100010.0,0.558282]
[1733690522856,0.0017302,100020.0,100010.0,1.26921556]
[1733690523024,0.0017302,100020.0,100010.0,1.60031014]
[1733690524205,0.0017302,100020.0,100010.0,1.73963122]
[1733690525151,0.0017302,100020.0,100010.0,1.05366941]
[1733690525366,0.0017302,100020.0,100010.0,0.40885236]
[1733690525573,0.0017302,100020.0,100010.0,0.184982]
[1733690525993,0.1246302,100020.0,100010.0,0.187982]
[1733690526407,0.1246302,100020.0,100010.0,0.182982]
[1733690526615,0.1246302,100020.0,100010.0,0.179982]
[1733690526841,0.1246302,100020.0,100010.0,0.25961239]
[1733690527026,0.0787302,100020.0,100010.0,0.181982]
[1733690527265,0.0787302,100020.0,100010.0,0.179982]
[1733690527475,0.0787302,100020.0,100010.0,0.180982]
[1733690527680,0.0787302,100020.0,100010.0,0.19216934]
[1733690549544,0.0787302,100020.0,100010.0,0.28186561]
[1733690549744,0.0787302,100020.0,100010.0,0.19216934]
[1733690551163,0.0787302,100020.0,100010.0,0.28186561]
[1733690555970,0.0787302,100020.0,100010.0,0.19216934]
[1733690558372,0.0787302,100020.0,100010.0,0.19303384]
[1733690571146,0.0787302,100020.0,100010.0,0.28300456]
[1733690572890,0.0787302,100020.0,100010.0,0.41796064]
[1733690573534,0.0787302,100020.0,100010.0,0.750067]
[1733690576087,0.0787302,100020.0,100010.0,0.75008779]
[1733690580783,0.0787302,100020.0,100010.0,0.75011666]
[1733690581670,0.0787302,100020.0,100010.0,0.75012172]
[1733690582053,0.0787302,100020.0,100010.0,0.75012334]
[1733690582260,0.0787302,100020.0,100010.0,0.41797579]
[1733690584930,0.0787302,100020.0,100010.0,0.75012399]
[1733690585359,0.0787302,100020.0,100010.0,0.74912399]
[1733690585567,0.0787302,100020.0,100010.0,0.75012399]
[1733690585787,0.0787302,100020.0,100010.0,0.77050413]
[1733690589065,0.0787302,100020.0,100010.0,0.77053921]
[1733690594854,0.0787302,100020.0,100010.0,0.43837306]
[1733690596507,0.0787302,100020.0,100010.0,0.77056961]
[1733690596929,0.0787302,100020.0,100010.0,0.76956961]
[1733690598350,0.0787302,100020.0,100010.0,0.94853687]
[1733690598556,0.0787302,100020.0,100010.0,0.76864633]
[1733690599184,0.0787302,100020.0,100010.0,0.55809685]
[1733690599390,0.2586942,100020.0,100010.0,0.09086543]
[1733690599630,0.39505213,100020.0,100010.0,0.09086543]
[1733690599836,0.39505213,100020.0,100010.0,0.0008645]
[1733690599837,0.52998903,100020.0,100010.0,0.0008645]
[1733690600885,0.7099049,100020.0,100010.0,0.0008645]
[1733690601336,0.52998903,100020.0,100010.0,0.0008645]
[1733690603498,0.39505213,100020.0,100010.0,0.0008645]
[1733690605900,0.39505213,100020.0,100010.0,0.1808465]
[1733690606497,0.3050942,100020.0,100010.0,0.1808465]
[1733690607998,0.39505213,100020.0,100010.0,0.1808465]
[1733690608412,0.3050942,100020.0,100010.0,0.1808465]
[1733690609764,0.0017302,100020.0,100010.0,0.34647782]
[1733690610029,0.0017302,100020.0,100010.0,0.73828109]
[1733690610263,0.0017302,100020.0,100010.0,1.07035331]
[1733690610715,0.0017302,100020.0,100010.0,0.99472292]
[1733690610940,0.0017302,100020.0,100010.0,1.21972526]
[1733690611663,0.0017302,100020.0,100010.0,0.99472292]
[1733690613099,0.0017302,100020.0,100010.0,0.2576465]
[1733690613307,0.0017302,100020.0,100010.0,0.66236426]
[1733690613521,0.0017302,100020.0,100010.0,0.99435931]
[1733690615842,0.0017302,100020.0,100010.0,1.00456206]
[1733690619770,0.0017302,100020.0,100010.0,1.08019245]
[1733690619894,0.0017302,100020.0,100010.0,1.30503565]
[1733690620321,0.0017302,100020.0,100010.0,1.08019245]
[1733690622606,0.0017302,100020.0,100010.0,1.30503565]
[1733690622834,0.0017302,100020.0,100010.0,1.08019245]
[1733690624338,0.0017302,100020.0,100010.0,1.00456206]
[1733690627943,0.0017302,100020.0,100010.0,1.08019245]
[1733690628548,0.0017302,100020.0,100010.0,1.30503565]
[1733690628795,0.0017302,100020.0,100010.0,1.21509837]
[1733690628976,0.0017302,100020.0,100010.0,1.08019245]
[1733690630330,0.0017302,100020.0,100010.0,1.32784146]
[1733690630962,0.0017302,100020.0,100010.0,1.23798224]
[1733690631179,0.0017302,100020.0,100010.0,1.32784085]
[1733690631383,0.0017302,100020.0,100010.0,1.23798224]
[1733690635242,0.0017302,100020.0,100010.0,1.32781076]
[1733690639561,0.0017302,100020.0,100010.0,1.10296756]
[1733690639763,0.0017302,100020.0,100010.0,0.73945986]
[1733690639764,0.1295302,100020.0,100010.0,0.73945986]
[1733690639965,0.1295302,100020.0,100010.0,0.1828465]
[1733690640337,0.3094942,100020.0,100010.0,0.1808465]
[1733690640657,0.3094942,100020.0,100010.0,0.1838465]
[1733690640865,0.3094942,100020.0,100010.0,0.1868465]
[1733690641092,0.3094942,100020.0,100010.0,0.1838465]
[1733690641702,0.3094942,100020.0,100010.0,0.1808465]
[1733690641900,0.3094942,100020.0,100010.0,0.1828465]
[1733690643091,0.3094942,100020.0,100010.0,0.1808465]
[1733690645292,0.1295302,100020.0,100010.0,0.1808465]
[1733690660426,0.3094942,100020.0,100010.0,0.1808465]
[1733690661043,0.3094942,100020.0,100010.0,0.0008645]
[1733690663754,0.3094942,100020.0,100010.0,0.1808465]
[1733690680469,0.40952371,100020.0,100010.0,0.0008645]
[1733690682147,0.55952371,100020.0,100010.0,0.0008645]
[1733690683448,0.64901557,100020.0,100010.0,0.0008645]
[1733690685181,0.78325336,100020.0,100010.0,0.0008645]
[1733690685800,0.96223708,100020.0,100010.0,0.0008645]
[1733690686558,0.78325336,100020.0,100010.0,0.0008645]
[1733690688087,0.79325661,100020.0,100010.0,0.0008645]
[1733690690060,0.97224033,100020.0,100010.0,0.0008645]
[1733690692916,0.79325661,100020.0,100010.0,0.0008645]
[1733690693319,0.97224033,100020.0,100010.0,0.0008645]
[1733690694547,0.79325661,100020.0,100010.0,0.0008645]
[1733690694758,0.97224033,100020.0,100010.0,0.0008645]
[1733690695531,1.19596998,100020.0,100010.0,0.0008645]
[1733690695710,1.10647812,100020.0,100010.0,0.0008645]
[1733690695922,1.19610618,100020.0,100010.0,0.0008645]
[1733690696542,1.10647812,100020.0,100010.0,0.0008645]
[1733690697189,1.19610162,100020.0,100010.0,0.0008645]
[1733690699418,1.10647812,100020.0,100010.0,0.0008645]
[1733690700713,1.09647487,100020.0,100010.0,0.0008645]
[1733690700868,0.65553248,100020.0,100010.0,0.0008645]
[1733690701069,0.52129469,100020.0,100010.0,0.0008645]
[1733690702371,0.59969469,100020.0,100010.0,0.0008645]
[1733690702569,0.73393248,100020.0,100010.0,0.0008645]
[1733690703259,0.59969469,100020.0,100010.0,0.0008645]
[1733690704181,0.73393248,100020.0,100010.0,0.0008645]
[1733690704507,0.59969469,100020.0,100010.0,0.0008645]
[1733690704695,0.73393248,100020.0,100010.0,0.0008645]
[1733690704914,0.59969469,100020.0,100010.0,0.0008645]
[1733690707539,0.59966584,100020.0,100010.0,0.0008645]
[1733690709986,0.59966584,100020.0,100010.0,0.1808465]
[1733690710228,0.1517302,100020.0,100010.0,0.2595465]
[1733690710431,0.0017302,100020.0,100010.0,0.2595465]
[1733690711280,0.0017302,100020.0,100010.0,0.40697689]
[1733690711516,0.0017302,100020.0,100010.0,0.63179805]
[1733690711755,0.0017302,100020.0,100010.0,1.03647682]
[1733690711937,0.0017302,100020.0,100010.0,1.16322218]
[1733690712134,0.0017302,100020.0,100010.0,0.426651]
[1733690712632,0.0017302,100020.0,100010.0,0.430651]
[1733690713092,0.0017302,100020.0,100010.0,0.429651]
[1733690713319,0.0017302,100020.0,100010.0,1.1660486]
[1733690713564,0.0017302,100020.0,100010.0,1.63270326]
[1733690713781,0.0017302,100020.0,100010.0,1.63470326]
[1733690714018,0.0017302,100020.0,100010.0,1.4999016]
[1733690714739,0.0017302,100020.0,100010.0,1.63470126]
[1733690715209,0.0017302,100020.0,100010.0,1.72454277]
[1733690715467,0.0017302,100020.0,100010.0,1.63470126]
[1733690715684,0.0017302,100020.0,100010.0,1.72452156]
[1733690715905,0.0017302,100020.0,100010.0,1.72382039]
[1733690716391,0.0017302,100020.0,100010.0,1.63399906]
[1733690716645,0.0017302,100020.0,100010.0,1.72379917]
[1733690716866,0.0017302,100020.0,100010.0,1.73391975]
[1733690717063,0.0017302,100020.0,100010.0,1.50936641]
[1733690717314,0.0017302,100020.0,100010.0,1.40206675]
[1733690718645,0.0017302,100020.0,100010.0,1.17751341]
[1733690718862,0.0017302,100020.0,100010.0,1.40206675]
[1733690720584,0.0017302,100020.0,100010.0,1.17751341]
[1733690721019,0.0017302,100020.0,100010.0,1.40206675]
[1733690721690,0.0017302,100020.0,100010.0,1.17751341]
[1733690722193,0.0017302,100020.0,100010.0,1.17671459]
[1733690722413,0.0017302,100020.0,100010.0,1.2767441]
[1733690725877,0.0017302,100020.0,100010.0,1.20111371]
[1733690726075,0.0017302,100020.0,100010.0,0.79414175]
[1733690726286,0.0017302,100020.0,100010.0,0.32836241]
[1733690726510,0.0017302,100020.0,100010.0,0.23864119]
[1733690733323,0.0017302,100020.0,100010.0,0.21564119]
[1733690733324,0.0802302,100020.0,100010.0,0.21564119]
[1733690734610,0.0802302,100020.0,100010.0,0.21264119]
[1733690734852,0.0802302,100020.0,100010.0,0.21064119]
[1733690735069,0.0802302,100020.0,100010.0,0.21164119]
[1733690738135,0.0802302,100020.0,100010.0,0.20152061]
[1733690745404,0.0802302,100020.0,100010.0,0.21136875]
[1733690747382,0.0802302,100020.0,100010.0,0.20152061]
[1733690762451,0.2601942,100020.0,100010.0,0.0018645]
[1733690762670,0.40652371,100020.0,100010.0,0.0018645]
[1733690764037,0.55652371,100020.0,100010.0,0.0018645]
[1733690767248,0.56649708,100020.0,100010.0,0.0018645]
[1733690768723,0.55652371,100020.0,100010.0,0.0018645]
[1733690770651,0.64607917,100020.0,100010.0,0.0018645]
[1733690771595,0.64607917,100020.0,100010.0,0.0008645]
[1733690771824,0.64707917,100020.0,100010.0,0.0008645]
[1733690773502,0.64607917,100020.0,100010.0,0.0008645]
[1733690773752,0.64812737,100020.0,100010.0,0.0008645]
[1733690773973,0.69812737,100020.0,100010.0,0.0008645]
[1733690774211,0.69612737,100020.0,100010.0,0.0008645]
[1733690774482,1.01174019,100020.0,100010.0,0.0008645]
[1733690774722,1.06174019,100020.0,100010.0,0.0008645]
[1733690774993,1.23374935,100020.0,100010.0,0.0008645]
[1733690775275,1.0097402,100020.0,100010.0,0.0008645]
[1733690775484,1.0117402,100020.0,100010.0,0.0008645]
[1733690775902,0.8273347,100020.0,100010.0,0.0008645]
[1733690776577,0.8253347,100020.0,100010.0,0.0008645]
[1733690776795,0.8253347,100020.0,100010.0,5e-07]
[1733690777234,1.37189751,100020.0,100010.0,0.0010005]
[1733690777419,1.23126783,100020.0,100010.0,5e-07]
[1733690777772,1.23126783,100020.0,99999.0,5.736e-05]
[1733690777773,0.4008,100000.0,99999.0,5.736e-05]
[1733690777976,1.10423982,100000.0,99999.0,5.736e-05]
[1733690778189,1.05943266,100000.0,99999.0,5.736e-05]
[1733690778396,1.38282671,100000.0,99999.0,5.736e-05]
[1733690778604,1.36282671,100000.0,99999.0,5.736e-05]
[1733690778812,1.27318629,100000.0,99999.0,0.00105736]
[1733690779216,1.01734087,100000.0,99999.0,0.00105736]
[1733690779873,0.88326837,100000.0,99999.0,0.00105736]
[1733690780054,1.0233341,100000.0,99999.0,0.00105736]
[1733690780703,1.10666665,100000.0,99999.0,5.736e-05]
[1733690781039,1.11366665,100000.0,99999.0,0.00205736]
[1733690781258,1.11366665,100000.0,99999.0,0.00105736]
[1733690781481,0.88308794,100000.0,99999.0,5.736e-05]
[1733690781659,0.88308794,100000.0,99999.0,0.00105736]
[1733690781862,0.9771605,100000.0,99999.0,0.00105736]
[1733690782037,0.80847113,100000.0,99999.0,0.00105736]
[1733690782245,0.98689789,100000.0,99999.0,0.00105736]
[1733690782456,0.80830898,100000.0,99999.0,0.00105736]
[1733690782847,0.82396198,100000.0,99999.0,0.00105736]
[1733690783245,0.6900203,100000.0,99999.0,5.736e-05]
[1733690783613,0.6980203,100000.0,99999.0,0.00105736]
[1733690783898,0.6980203,100000.0,99999.0,0.00205736]